Cogmind - Beta 13 @@@ ROGUE MODE // 2024.04.08 @ 15:31:59 Player: kucifra Result: Destroyed by as-09292 with Assembled Heavy Rifle Performance ------------- Evolutions (0) 0 Regions Visited (4) 800 Robots Destroyed (5) 25 Value Destroyed (151) 151 Prototype IDs (1) 20 Alien Tech Used (0) 0 Bonus (83) 83 TOTAL SCORE: 1079 Bonus ------- Follower Combat Kills 99 Friendly Fire -16 Cogmind --------- Core Integrity 0/250 Matter 275/300 Energy 248/250 System Corruption 0% Temperature Cool (1) Movement Treading (240) Ox1 Location -9/Mines Parts ------- > --- POWER (1) -------- Ion Engine > --- PROPULSION (2) --- Light Treads > --- UTILITY (2) ------ Medium Storage Unit Medium Armor Plating > --- WEAPON (2) ------- Grenade Launcher Makeshift Axe > --- INVENTORY (10) --- Ion Engine High-capacity Matter Pod (92) Sensor Array Improved Targeting Computer Improved Targeting Computer Makeshift System Restoration Module Light Assault Rifle Grenade Launcher Peak State ------------ > --- POWER ------------ Ion Engine > --- PROPULSION ------- Light Treads Light Treads > --- UTILITY ---------- Medium Storage Unit Splice Drone Bay > --- WEAPON ----------- Assault Rifle Light Assault Rifle > --- INVENTORY -------- Ion Engine High-capacity Matter Pod Improved Targeting Computer Improved Targeting Computer Medium Armor Plating Makeshift System Restoration Module Grenade Launcher Grenade Launcher Makeshift Axe [Rating: 14] Favorites ----------- Power Ion Engine Engine Ion Engine Propulsion Light Treads Treads Light Treads Leg Aluminum Leg Utility Medium Armor Plating Device Splice Drone Bay Storage Medium Storage Unit Protection Medium Armor Plating Weapon Assault Rifle Energy Gun Small Laser Ballistic Gun Assault Rifle Launcher Grenade Launcher Slashing Weapon Makeshift Axe Build | -11 -10 -10 -10 -9 ------- Run | Yrd Mat Min Exi Min Slots Evolved . | . . . . . Power . | . . . . . Propulsion . | . . . . . Utility . | . . . . . Weapon . | . . . . . Parts Attached 19 | 6 5 1 1 6 Power 1 | 1 . . . . Engine 1 | 1 . . . . Core . | . . . . . Reactor . | . . . . . Propulsion 5 | 2 2 . . 1 Treads 3 | . 2 . . 1 Leg 2 | 2 . . . . Wheel . | . . . . . Hover . | . . . . . Flight . | . . . . . Utility 7 | 1 2 . 1 3 Device 1 | . . . . 1 Storage 3 | 1 1 . 1 . Processor . | . . . . . Hackware . | . . . . . Protection 3 | . 1 . . 2 Artifact . | . . . . . Weapon 6 | 2 1 1 . 2 Energy Gun 1 | 1 . . . . Energy Cannon . | . . . . . Ballistic Gun 3 | 1 1 1 . . Ballistic Cannon . | . . . . . Launcher 1 | . . . . 1 Special Weapon . | . . . . . Impact Weapon . | . . . . . Slashing Weapon 1 | . . . . 1 Piercing Weapon . | . . . . . Special Melee Weapon . | . . . . . Unidentified Prototypes 1 | . . . . 1 Parts Lost 3 | . . . . 3 Power . | . . . . . Propulsion 1 | . . . . 1 Utility 1 | . . . . 1 Weapon 1 | . . . . 1 Highest Loss Streak 3 | . . . . 3 To Critical Strikes . | . . . . . Average Slot Usage (%) 99 | . 98 100 100 99 Engine 14 | . 14 14 14 14 Treads 27 | . 23 28 28 27 Storage 15 | . 22 14 14 14 Protection 12 | . 4 14 14 13 Ballistic Gun 27 | . 27 28 28 26 Naked Turns . | . . . . . Heaviest Build 28 | 13 21 21 25 28 Greatest Support 40 | 20 40 40 40 40 Greatest Overweight (x) 1 | 1 . . . 1 Average Overweight (x) . | . . . . . Largest Inventory Capacity 10 | 8 8 8 10 10 Average Capacity 9 | 7 8 8 9 10 Most Carried 10 | 3 8 8 10 10 Average Carried 8 | 2 6 8 9 9 Final Capacity 10 | 8 8 8 10 10 Final Carried 10 | 3 8 8 10 8 Class Distribution -------------------- 100% | Mutant Dominant Class ---------------- Mutant | -10/Materials Mutant | -10/Mines Mutant | -10/Exiles Mutant | -9/Mines Resources | -11 -10 -10 -10 -9 ----------- Run | Yrd Mat Min Exi Min Matter Collected 626 | 197 . 177 . 252 Remotely . | . . . . . Salvage Created 235 | . 101 74 . 60 Parts 10 | . 6 4 . . Haulers Intercepted . | . . . . . Recyclers Shooed 1 | . 1 . . . Parts Field Recycled . | . . . . . Retrieved Matter . | . . . . . Parts Self-Destructed . | . . . . . Prevented . | . . . . . Kills | -11 -10 -10 -10 -9 ------- Run | Yrd Mat Min Exi Min Combat Hostiles Destroyed 8 | . 2 2 . 4 Melee 3 | . . . . 3 Guns 5 | . 2 2 . 1 Classes Destroyed 4 | . 2 1 . 1 Watcher 1 | . 1 . . . Swarmer 1 | . . 1 . . Grunt 3 | . 2 1 . . Assembled 4 | . . . . 4 Best Kill Streak 4 | . 3 1 . 4 Combat Bots Only 4 | . 2 1 . 4 Max Kills in Single Turn 1 | . 1 1 . 1 Gunslinging . | . . . . . Exploded . | . . . . . Melee 1 | . . . . 1 Uniques/NPCs Destroyed . | . . . . . Combat | -11 -10 -10 -10 -9 -------- Run | Yrd Mat Min Exi Min Hostile Shots Fired 119 | . 37 10 . 72 Missed 28 | . 8 2 . 18 Damage Taken 1209 | . 323 105 . 781 Core 254 | . 56 . . 198 Absorbed by Shields . | . . . . . Core Remaining (%) 100 | 100 . . . . Volleys Fired 39 | . 19 4 . 16 Largest 2 | . 2 2 . 2 Hottest 40 | . 40 40 . 40 Shots Fired 72 | . 38 8 . 26 Gun 72 | . 38 8 . 26 Cannon . | . . . . . Launcher . | . . . . . Special . | . . . . . Kinetic 72 | . 38 8 . 26 Thermal . | . . . . . Explosive . | . . . . . Electromagnetic . | . . . . . Robot Hit Streak 7 | . 6 2 . 7 Robot Miss Streak 7 | . 7 1 . 2 Penetration Max . | . . . . . Secondary Targets 1 | . 1 . . . Max Gunslinging Chain 1 | . 1 . . . Shots Hit Robots 46 | . 22 5 . 19 Core Hits 18 | . 7 3 . 8 Critical Kills . | . . . . . Critical Parts Destroyed 1 | . . . . 1 Critical Strikes 1 | . . . . 1 Destroy 1 | . . . . 1 Melee Attacks 4 | . . . . 4 Impact . | . . . . . Slashing 4 | . . . . 4 Piercing . | . . . . . Sneak Attacks . | . . . . . Combat Hostiles . | . . . . . Follow-up Attacks . | . . . . . Damage Inflicted 658 | . 299 70 . 289 Guns 523 | . 299 70 . 154 Cannons . | . . . . . Explosions . | . . . . . Melee 135 | . . . . 135 Ramming . | . . . . . Kinetic 523 | . 299 70 . 154 Thermal . | . . . . . Explosive . | . . . . . Electromagnetic . | . . . . . Impact . | . . . . . Slashing 135 | . . . . 135 Piercing . | . . . . . Highest Corruption . | . . . . . Average Corruption . | . . . . . Corruption Purged . | . . . . . Corruption Blocked . | . . . . . Overload Shots . | . . . . . Overflow Damage . | . . . . . Projectiles . | . . . . . Explosions . | . . . . . Melee . | . . . . . Knockbacks . | . . . . . Impact . | . . . . . Kinetic . | . . . . . Secondary . | . . . . . Self-Inflicted Damage . | . . . . . Shots . | . . . . . Rammed . | . . . . . Targets Rammed . | . . . . . Kicked . | . . . . . Crushed . | . . . . . Highest Temperature 62 | . 5 11 . 62 Average Temperature 16 | . 5 5 . 19 Received Heat Transfer 462 | . 174 42 . 246 Siege Activations . | . . . . . Robots Corrupted . | . . . . . Combat Hostiles . | . . . . . Parts Fried . | . . . . . Impact Corruptions . | . . . . . Robots Melted . | . . . . . Combat Hostiles . | . . . . . Parts Melted . | . . . . . Heat Transferred . | . . . . . Parts Sabotaged . | . . . . . Parts Stolen . | . . . . . Parts Stripped . | . . . . . Power Chain Reactions . | . . . . . Alert | -11 -10 -10 -10 -9 ------- Run | Yrd Mat Min Exi Min Peak Influence 166 | . 62 166 . 72 Initial 24 | . . 24 . . Average 40 | . 26 51 . 41 Maximum Alert Level . | . . . . . Low Security (%) 100 | 100 100 100 . 100 Level 1 . | . . . . . Level 2 . | . . . . . Level 3 . | . . . . . Level 4 . | . . . . . Level 5 . | . . . . . High Security . | . . . . . Max Security . | . . . . . Squads Dispatched . | . . . . . Investigation . | . . . . . Extermination . | . . . . . Reinforcement . | . . . . . Assault . | . . . . . Garrison . | . . . . . Intercept . | . . . . . Searches Triggered . | . . . . . Construction Impeded . | . . . . . Haulers Reinforced . | . . . . . Active Scanning Responses . | . . . . . Cargo Convoy Interrupts . | . . . . . Stealth | -11 -10 -10 -10 -9 --------- Run | Yrd Mat Min Exi Min Distress Signals 1 | . 1 . . . Communications Jammed . | . . . . . Distress Signals . | . . . . . Times Spotted 29 | . 3 5 . 21 Peak Tracking Total 17 | . 3 3 . 17 Tactical Retreats 1 | . . . . 1 Traps | -11 -10 -10 -10 -9 ------- Run | Yrd Mat Min Exi Min Traps Triggered . | . . . . . Indirectly . | . . . . . Trap Hack Attempts . | . . . . . Triggered . | . . . . . Disarmed . | . . . . . Reprogrammed . | . . . . . Reused . | . . . . . Traps Extracted . | . . . . . Installed . | . . . . . Triggered . | . . . . . Machines | -11 -10 -10 -10 -9 ---------- Run | Yrd Mat Min Exi Min Machines Disabled 1 | . 1 . . . Max in Single Turn 1 | . 1 . . . Machines Repaired . | . . . . . Machines Dismantled . | . . . . . Machines Sabotaged . | . . . . . Overloaded Fab Kills . | . . . . . Hacking | -11 -10 -10 -10 -9 --------- Run | Yrd Mat Min Exi Min Machines Accessed 3 | . . . 2 1 Terminals . | . . . . . Fabricators . | . . . . . Repair Stations . | . . . . . Recycling Units . | . . . . . Scanalyzers . | . . . . . Garrison Access . | . . . . . Total Hacks 26 | . . . 25 1 Successful 26 | . . . 25 1 Failed . | . . . . . Catastrophic . | . . . . . Database Lockouts . | . . . . . Manual 1 | . . . 1 . Terminals . | . . . . . Fabricators . | . . . . . Repair Stations . | . . . . . Recycling Units . | . . . . . Scanalyzers . | . . . . . Garrison Access . | . . . . . Terminal Hacks 26 | . . . 25 1 Record 25 | . . . 25 . Open Door 1 | . . . . 1 Fabricator Hacks . | . . . . . Repair Station Hacks . | . . . . . Recycling Unit Hacks . | . . . . . Scanalyzer . | . . . . . Garrison Access Hacks . | . . . . . Unauthorized Hacks . | . . . . . Terminals . | . . . . . Fabricators . | . . . . . Repair Stations . | . . . . . Recycling Units . | . . . . . Scanalyzers . | . . . . . Garrison Access . | . . . . . Data Cores Recovered . | . . . . . Used . | . . . . . Hacking Detections . | . . . . . Full Trace Events . | . . . . . Feedback Events . | . . . . . Feedback Blocked . | . . . . . Robot Schematics Acquired . | . . . . . Robots Built . | . . . . . Authchips . | . . . . . Time . | . . . . . Total Robot Build Rating . | . . . . . Part Schematics Acquired . | . . . . . Parts Built . | . . . . . Authchips . | . . . . . Time . | . . . . . Total Part Build Rating . | . . . . . Parts Repaired . | . . . . . Time . | . . . . . Parts Recycled . | . . . . . Recycled Matter . | . . . . . Retrieved Matter . | . . . . . Retrieved Components . | . . . . . Parts Scanalyzed . | . . . . . Part Schematics Acquired . | . . . . . Parts Damaged . | . . . . . Bothacking | -11 -10 -10 -10 -9 ------------ Run | Yrd Mat Min Exi Min Used RIF Installer . | . . . . . Robots Hacked . | . . . . . Non-combat . | . . . . . Combat . | . . . . . Robot Hacks Applied . | . . . . . Relay Couplers Released . | . . . . . Fabnet Peak Effective % . | . . . . . Robots Rewired 3 | . . . 3 . Allies Hacked . | . . . . . Hacks Repelled . | . . . . . Allies | -11 -10 -10 -10 -9 -------- Run | Yrd Mat Min Exi Min Total Allies 4 | . . 1 3 . Largest Group 3 | . . 1 3 3 Highest-Rated Group 31 | . . 31 24 24 Highest-Rated Ally 31 | . . 31 8 8 Total Orders . | . . . . . Ally Attacks 20 | . . 6 . 14 Total Damage 228 | . . 107 . 121 Kills 5 | . . 3 . 2 Allies Corrupted . | . . . . . Allies Melted . | . . . . . Intel | -11 -10 -10 -10 -9 ------- Run | Yrd Mat Min Exi Min Robot Analysis Total . | . . . . . Derelict Logs Recovered 2 | . . 1 . 1 Drone Launches . | . . . . . Drone Recoveries . | . . . . . Exploration | -11 -10 -10 -10 -9 ------------- Run | Yrd Mat Min Exi Min Turns Passed 2279 | 64 275 489 1076 375 Spaces Moved 1334 | 48 133 298 657 198 Core 8 | 8 . . . . Treads 1249 | . 96 298 657 198 Legs 77 | 40 37 . . . Wheels . | . . . . . Hover . | . . . . . Flight . | . . . . . Fastest Speed 50 | 50 120 160 160 160 Average Speed 157 | 110 148 160 160 160 Slowest Speed 240 | 120 160 160 160 240 Overloaded Moves . | . . . . . Propulsion Burnouts . | . . . . . Robots Hopped . | . . . . . Cave-ins Triggered . | . . . . . Exploration Rate (%) 49 | 3 35 69 93 46 Regions Visited 4 Branch Regions 3 Pre-discovered Areas 2 | . . 1 1 . Known Exits Taken . | . . . . . Unknown Exits Taken 4 | 1 1 1 1 . Scrap Searched 3 | . . 1 . 2 Spaces Dug . | . . . . . Terrain Destroyed . | . . . . . Melee . | . . . . . Projectile . | . . . . . AOE . | . . . . . Terrain Rammed . | . . . . . Walls Destroyed . | . . . . . Machines Disabled . | . . . . . Actions | -11 -10 -10 -10 -9 --------- Run | Yrd Mat Min Exi Min Total 1449 | 56 176 303 683 231 Wait . | . . . . . Move 1330 | 47 132 297 656 198 Hop . | . . . . . Pick Up 19 | 3 11 . 2 3 Fast Attach 7 | 6 1 . . . Attach 8 | . 4 . . 4 Detach 4 | . 3 . . 1 Swap 4 | . . 1 1 2 Drop 11 | . 6 1 1 3 Fire 39 | . 19 4 . 16 Melee 4 | . . . . 4 Ram . | . . . . . Kick . | . . . . . Crush . | . . . . . Escape Stasis . | . . . . . Rewire 23 | . . . 23 . Trap . | . . . . . Miscellaneous . | . . . . . Route ------- -11/Scrapyard -10/Materials -10/Mines (discovered 3 exits: [*Mat x2] / *Exi) -10/Exiles (discovered 2 exits: *Min x2) -9/Mines (discovered 1 exit: [*Mat]) History --------- Turn | Location | Event 14 | -11/Scrapyard | Discovered new exit (range 15) 65 | -11/Scrapyard | Entered Materials 284 | -10/Materials | Discovered new exit (range 6) 314 | -10/Materials | Build established: Mutant 340 | -10/Materials | Entered Mines 460 | -10/Mines | Discovered new exit (range 6) 519 | -10/Mines | Received a Mining Laser from a helpful Derelict 604 | -10/Mines | Discovered new exit (range 8) 823 | -10/Mines | Deemed a non-threat by the Exiles lab entrance 823 | -10/Mines | Discovered new exit (range 5) 829 | -10/Mines | Entered Exiles 829 | -10/Exiles | Found Exiles lab destroyed 853 | -10/Exiles | Discovered new exit (range 14) 1057 | -10/Exiles | Discovered new exit (range 14) 1156 | -10/Exiles | Learned location of Zion (-7) 1905 | -10/Exiles | Entered Mines 1905 | -9/Mines | Accompanied by 3 allies 1956 | -9/Mines | Found the Drone Emporium 1965 | -9/Mines | Found Prototype Device 1967 | -9/Mines | Identified Splice Drone Bay 2224 | -9/Mines | Discovered new exit (range 11) 2227 | -9/Mines | Assembled infested the area 2232 | -9/Mines | Assisted by a Guerilla fighting off Assembled 2257 | -9/Mines | Core integrity fell below 50% 2266 | -9/Mines | Core integrity fell below 20% 2271 | -9/Mines | Lost 4 allies 2280 | -9/Mines | Destroyed by as-09292 with Assembled Heavy Rifle Last Messages --------------- G-47 Trooper suffers critical hit (Destroy). G-47 Trooper destroyed. G-34 Mercenary destroyed. Mercenary 1b destroyed. V5-JCW(h) destroyed. Acquired 48 matter. Mercenary 1a destroyed. Acquired 33 matter. Destroyed Asb. Hover Unit. Med. Armor Plating destroyed. Assault Rifle destroyed. as-03009 destroyed. U-05 Engineer system corrupted by crushing effect. U-05 Engineer system terminally corrupted. as-33933 destroyed. as-95064 destroyed. as-78071 destroyed. Lgt. Treads destroyed. Acquired 12 matter. Map ----- +----------------------------------------------------+ | ???????# ##??????????????????????? | | ?????## #??????????????????????? | | ????## #??????????????????????? | | ????# #???????????????????????? | | ????# =/ #????????????????????????? | | ?????#! ####??????????????????????? | | ?????# ### ###???????????????????? | | ###### #?# #???????????????????? | | #??# #???????????????????? | | ###### #??## ##???????????????????? | | ?????# ##### ######???????????????? | | ?????# #????????#?#????? | | ?????#### ####### #???????# ????? | | ????????# #?????# #?????## ????? | | ????????# #?????# #????## """ ?? | | ????????# #?????# #????? """ ??? | | ????????# #?????# #????? """????? | | ????????# #?????# #????? ""?????? | | ????????# #?????# #????? ??????? | | ????????# ?????# ####### #???????? | | ?????????##?????# %#???????? | | ????????????????#########*#???????? | | ????????????????????????#=#???????? | | ????????????????????????#[#???????? | | ????????????????????????#[#???????? | | ????????????????????????#@#???????? | | ????????????????????????#a%=??????? | | ????????????????????????#[%*%#????? | | ????????????????????????#!=* #???? | | ????????????????????????[*] #??? | | ???????????????????????? *|=% #??? | | ????????????????????????!!